bitfinex/quotes_BTCUSD_20251016
["timestamp","ask_amount","ask_price","bid_price","bid_amount"]
[1760631726458,0.52736834,108350.0,108340.0,0.18464402]
[1760631726663,0.62336834,108350.0,108340.0,0.18464402]
[1760631726874,0.52736834,108350.0,108340.0,0.18464402]
[1760631727082,0.52736834,108350.0,108340.0,0.27433414]
[1760631727083,0.62340834,108350.0,108340.0,0.27433414]
[1760631727323,0.52736834,108350.0,108340.0,0.08973012]
[1760631727516,0.62336834,108350.0,108340.0,0.27433414]
[1760631728022,0.62336834,108350.0,108340.0,0.08973012]
[1760631728224,0.62336834,108350.0,108340.0,0.18464402]
[1760631728778,0.62336834,108350.0,108340.0,4e-05]
[1760631729488,0.82795532,108350.0,108340.0,4e-05]
[1760631729706,1.57654502,108350.0,108340.0,4e-05]
[1760631729927,0.64336834,108350.0,108340.0,4e-05]
[1760631730156,0.82795532,108350.0,108340.0,4e-05]
[1760631730398,1.74830384,108350.0,108340.0,4e-05]
[1760631730626,0.18461866,108340.0,108320.0,0.00024]
[1760631730872,0.11596849,108330.0,108320.0,0.00024]
[1760631731119,0.14430908,108330.0,108320.0,0.00024]
[1760631731344,0.14434908,108330.0,108320.0,0.00024]
[1760631731574,1.14724147,108330.0,108320.0,0.00024]
[1760631732022,0.30265177,108330.0,108320.0,0.00024]
[1760631732271,0.39865177,108330.0,108320.0,0.00024]
[1760631732475,0.30265177,108330.0,108320.0,0.00024]
[1760631732691,1.14724147,108330.0,108320.0,0.00024]
[1760631732895,0.86662041,108330.0,108320.0,0.00024]
[1760631733100,1.14720147,108330.0,108320.0,0.00024]
[1760631733333,0.21400535,108330.0,108320.0,0.00024]
[1760631733563,0.21400535,108330.0,108320.0,0.00073151]
[1760631733774,0.21400535,108330.0,108320.0,0.00024]
[1760631733775,1.23689819,108330.0,108320.0,0.00024]
[1760631733982,0.11804535,108330.0,108320.0,0.00024]
[1760631734199,0.02835523,108330.0,108320.0,0.00024]
[1760631734415,0.12435523,108330.0,108320.0,0.00024]
[1760631735316,0.21404535,108330.0,108320.0,0.00028]
[1760631735932,0.39866641,108330.0,108320.0,0.00028]
[1760631736259,0.40892068,108330.0,108320.0,0.00028]
[1760631736406,0.21404535,108330.0,108320.0,0.00028]
[1760631736952,0.39866641,108330.0,108320.0,0.00028]
[1760631738301,0.11804535,108330.0,108320.0,0.00028]
[1760631738529,0.39862641,108330.0,108320.0,0.00028]
[1760631738903,0.4569495,108330.0,108320.0,0.00028]
[1760631739129,0.7969495,108330.0,108320.0,0.00028]
[1760631740047,0.83313178,108330.0,108320.0,0.00028]
[1760631740448,0.73717178,108330.0,108320.0,0.00028]
[1760631740649,0.64266641,108330.0,108320.0,0.00028]
[1760631740867,0.73866641,108330.0,108320.0,0.00028]
[1760631741073,1.52343839,108330.0,108320.0,0.00028]
[1760631742322,1.52343839,108330.0,108320.0,1e-08]
[1760631742533,1.61312047,108330.0,108320.0,1e-08]
[1760631743673,1.61412047,108330.0,108320.0,1e-08]
[1760631743887,5.31916447,108330.0,108320.0,1e-08]
[1760631744474,0.22083743,108310.0,108300.0,4e-05]
[1760631744672,0.52488278,108310.0,108300.0,4e-05]
[1760631744850,0.61456486,108310.0,108300.0,4e-05]
[1760631745051,1.36315456,108310.0,108300.0,4e-05]
[1760631745542,1.17747248,108310.0,108300.0,4e-05]
[1760631745763,1.27447248,108310.0,108300.0,0.00019095]
[1760631746192,0.3937005,108310.0,108300.0,0.00019095]
[1760631746446,0.5885974,108310.0,108300.0,0.00019095]
[1760631746663,0.43325255,108310.0,108300.0,0.00023095]
[1760631746897,0.47657781,108310.0,108300.0,0.00023095]
[1760631747102,1.22416751,108310.0,108300.0,0.00023095]
[1760631747357,1.60034979,108310.0,108300.0,0.00023095]
[1760631747559,1.60134979,108310.0,108300.0,0.00023095]
[1760631747764,0.71343483,108310.0,108300.0,0.00023095]
[1760631747974,0.77325255,108310.0,108300.0,0.00023095]
[1760631748184,0.80943483,108310.0,108300.0,0.00023095]
[1760631748395,0.1525974,108310.0,108300.0,0.00023095]
[1760631748629,0.11935523,108310.0,108300.0,0.00023095]
[1760631748840,0.21535523,108310.0,108300.0,0.00023095]
[1760631749049,0.26076669,108310.0,108300.0,0.00023095]
[1760631749266,0.11935523,108310.0,108300.0,0.18490315]
[1760631749480,0.11935523,108310.0,108300.0,1.02318297]
[1760631749685,0.21535523,108310.0,108300.0,1.02318297]
[1760631749908,0.21535523,108310.0,108300.0,0.27459327]
[1760631750329,0.207,108310.0,108300.0,0.27459327]
[1760631750533,0.21532234,108310.0,108300.0,0.08992107]
[1760631750740,0.21532234,108310.0,108300.0,0.27459327]
[1760631751784,0.11932234,108310.0,108300.0,0.27459327]
[1760631751993,0.21532234,108310.0,108300.0,0.00023095]
[1760631752208,0.21532234,108310.0,108300.0,0.18490315]
[1760631752441,0.11932234,108310.0,108300.0,0.18490315]
[1760631752650,0.21532234,108310.0,108300.0,0.27459327]
[1760631752863,0.11932234,108310.0,108300.0,5.27459327]
[1760631753045,0.00932234,108310.0,108300.0,6.36318297]
[1760631753282,0.00932234,108310.0,108300.0,0.27459327]
[1760631753690,0.00933444,108310.0,108300.0,0.27459327]
[1760631755234,0.00933444,108310.0,108300.0,5.27459327]
[1760631755439,0.00933444,108310.0,108300.0,6.02318297]
[1760631755647,0.00933444,108310.0,108300.0,6.36318297]
[1760631756489,0.00933444,108310.0,108300.0,0.61459327]
[1760631756698,0.00933444,108310.0,108300.0,0.60557688]
[1760631756920,0.00933444,108310.0,108300.0,5.60557688]
[1760631757131,0.00933444,108310.0,108300.0,6.35416658]
[1760631757337,0.00933444,108310.0,108300.0,5.60557688]
[1760631759520,0.00933444,108310.0,108300.0,5.59956607]
[1760631760962,0.00933444,108310.0,108300.0,0.40287227]
[1760631761199,0.10533444,108310.0,108300.0,0.06287227]
[1760631761432,0.12533444,108310.0,108280.0,0.18470514]
[1760631761668,0.31923437,108310.0,108280.0,0.27454425]
[1760631761884,0.31923437,108310.0,108280.0,0.27454603]
[1760631761885,1.05925874,108310.0,108280.0,0.27454603]
[1760631762096,0.83056371,108310.0,108280.0,0.08984109]
[1760631762306,0.70524565,108300.0,108280.0,0.00015097]
[1760631762513,0.09596,108290.0,108280.0,0.00015097]
[1760631762742,0.22429444,108290.0,108280.0,0.00019097]
[1760631762953,0.10429444,108290.0,108280.0,0.00019097]
[1760631765244,0.2989837,108290.0,108280.0,0.00019097]
[1760631765514,0.63486694,108290.0,108280.0,0.00019097]
[1760631765933,0.11429444,108290.0,108280.0,0.00019097]
[1760631766090,0.11433444,108290.0,108280.0,0.00019097]
[1760631766290,0.11433444,108290.0,108280.0,0.00667422]
[1760631766505,0.2990237,108290.0,108260.0,0.20313441]
[1760631766701,0.11433444,108290.0,108260.0,0.29282453]
[1760631767072,0.11433444,108290.0,108270.0,0.18472307]
[1760631767657,0.096,108280.0,108270.0,0.18472284]
[1760631767873,0.096,108280.0,108270.0,0.18472337]
[1760631767874,0.10433444,108280.0,108270.0,0.18472337]
[1760631768074,0.00833444,108280.0,108270.0,0.27441349]
[1760631768279,0.10433444,108280.0,108270.0,0.27441349]
[1760631768686,0.10433444,108280.0,108270.0,0.08969012]
[1760631768918,0.28904096,108280.0,108250.0,0.03737507]
[1760631769135,0.28904096,108280.0,108250.0,0.12706519]
[1760631769136,0.29904116,108280.0,108250.0,0.12706519]
[1760631769342,0.10433444,108280.0,108260.0,0.18473979]
[1760631769562,0.10433444,108280.0,108260.0,0.18473831]
[1760631769980,0.10433444,108280.0,108250.0,0.83238978]
[1760631769981,0.00833444,108280.0,108250.0,0.83238978]
[1760631770213,0.55760053,108300.0,108270.0,0.18472091]
[1760631770428,0.39790585,108300.0,108280.0,0.00927934]
[1760631770638,0.18468926,108290.0,108260.0,0.79500305]
[1760631770851,0.31468926,108290.0,108260.0,0.27443055]
[1760631771067,0.18471231,108280.0,108260.0,0.08969012]
[1760631771195,0.18471231,108280.0,108250.0,0.24052384]
[1760631771196,0.31470856,108280.0,108250.0,0.24052384]
[1760631771398,0.13,108280.0,108250.0,0.33021396]
[1760631771610,0.13,108280.0,108250.0,0.31182116]
[1760631771918,0.31470932,108280.0,108250.0,0.31182182]
[1760631772080,0.31470932,108280.0,108250.0,0.31182093]
[1760631772081,0.83528182,108280.0,108250.0,0.31182093]
[1760631772291,0.04,108280.0,108250.0,0.31182093]
[1760631772497,0.01561573,108280.0,108250.0,0.31182093]
[1760631772728,0.22624694,108280.0,108250.0,0.31182093]
[1760631772933,0.02,108280.0,108250.0,0.31182093]
[1760631773148,0.02,108280.0,108260.0,0.1931003]
[1760631773366,0.23082587,108300.0,108260.0,0.1931003]
[1760631773367,0.00015072,108300.0,108270.0,0.18472337]
[1760631773577,0.42098981,108300.0,108280.0,0.00766673]
[1760631773778,0.21323272,108300.0,108280.0,0.00766673]
[1760631774008,0.14015072,108300.0,108280.0,0.00766673]
[1760631774239,0.37132739,108300.0,108280.0,0.00729628]
[1760631774453,0.71449622,108290.0,108260.0,0.29282688]
[1760631774665,0.18470822,108280.0,108260.0,0.01839673]
[1760631774883,0.01,108280.0,108260.0,0.29282544]
[1760631775083,0.00015072,108300.0,108270.0,0.79498599]
[1760631775294,0.13015072,108300.0,108270.0,0.08969012]
[1760631775515,0.31582511,108300.0,108270.0,0.27441261]
[1760631775718,0.31482511,108300.0,108270.0,0.27441261]
[1760631775930,0.13015072,108300.0,108270.0,0.27441261]
[1760631776341,0.13015072,108300.0,108280.0,5.70526518]
[1760631776567,0.13015072,108300.0,108290.0,0.79785205]
[1760631776785,0.13015072,108300.0,108290.0,0.79495188]
[1760631777008,0.13015072,108300.0,108290.0,5.79495188]
[1760631777239,0.00015072,108300.0,108290.0,5.71037938]
[1760631777439,0.00015072,108300.0,108290.0,6.23095188]
[1760631777641,0.00115072,108300.0,108290.0,6.23095188]
[1760631777908,0.00015072,108300.0,108290.0,6.23095188]
[1760631778331,0.00015072,108300.0,108290.0,5.71037938]
[1760631778332,0.00115072,108300.0,108290.0,5.71037938]
[1760631778540,0.00115072,108300.0,108290.0,6.23095188]
[1760631779419,0.00115072,108300.0,108290.0,6.26713416]
[1760631779420,1e-08,108300.0,108290.0,6.26713416]
[1760631780813,1e-08,108300.0,108290.0,5.77340809]
[1760631781062,1e-08,108300.0,108290.0,6.26713416]
[1760631781906,1e-08,108300.0,108290.0,6.26709416]
[1760631782111,0.00834801,108300.0,108290.0,6.23091188]
[1760631782319,0.00834801,108300.0,108290.0,5.71033938]
[1760631782528,0.00834801,108300.0,108290.0,6.23091188]
[1760631782728,0.00834801,108300.0,108290.0,1.23091188]
[1760631782957,0.00834801,108300.0,108290.0,0.27437938]
[1760631783166,0.00834801,108300.0,108290.0,0.37033938]
[1760631783371,0.00834801,108300.0,108290.0,0.18468926]
[1760631783570,0.00834801,108300.0,108280.0,0.18470063]
[1760631783782,0.00834801,108300.0,108280.0,0.27439075]
[1760631783993,0.19302514,108300.0,108280.0,0.08969012]
[1760631784207,0.19987177,108300.0,108260.0,0.18473859]
[1760631784436,0.72967788,108300.0,108270.0,0.08969012]
[1760631784643,0.19987249,108300.0,108280.0,4e-05]
[1760631784868,0.01519949,108300.0,108280.0,4e-05]
[1760631785098,0.22295673,108300.0,108280.0,4e-05]
[1760631785343,0.18468926,108290.0,108280.0,4e-05]
[1760631785559,0.26468926,108290.0,108280.0,4e-05]
[1760631785770,0.87494384,108290.0,108280.0,4e-05]
[1760631785978,0.94802584,108290.0,108280.0,4e-05]
[1760631786396,0.42745334,108290.0,108280.0,4e-05]
[1760631786622,0.94802584,108290.0,108280.0,4e-05]
[1760631786837,0.85834376,108290.0,108280.0,4e-05]
[1760631787449,0.85834376,108290.0,108250.0,0.20319737]
[1760631787450,0.19395573,108280.0,108250.0,0.01839673]
[1760631787666,0.18472373,108270.0,108250.0,0.01839673]
[1760631787876,0.05,108270.0,108250.0,0.01839673]
[1760631788292,0.05,108270.0,108240.0,0.71507255]
[1760631788505,0.05,108270.0,108250.0,0.18475561]
[1760631788710,0.23472344,108270.0,108240.0,0.12159738]
[1760631788956,0.19398124,108260.0,108230.0,0.0004]
[1760631789169,0.19398124,108260.0,108240.0,0.18477417]
[1760631789170,0.01,108260.0,108240.0,0.18477417]
[1760631789593,0.01,108260.0,108250.0,4e-05]
[1760631789821,0.19474043,108260.0,108250.0,4e-05]
[1760631790025,0.01,108260.0,108250.0,4e-05]
[1760631790237,0.19474043,108260.0,108250.0,0.00054098]
[1760631790474,0.01,108260.0,108250.0,0.00054098]
[1760631791476,0.01,108260.0,108250.0,0.00058098]
[1760631791477,0.19474043,108260.0,108250.0,0.00058098]
[1760631791925,0.75542217,108260.0,108250.0,0.00058098]
[1760631792669,0.75542217,108260.0,108250.0,0.00062098]
[1760631792896,0.23484967,108260.0,108250.0,0.00062098]
[1760631793319,1.09542217,108260.0,108250.0,0.00062098]
[1760631794479,0.57484967,108260.0,108250.0,0.00062098]
[1760631794692,0.68698929,108260.0,108250.0,0.00062098]
[1760631794892,0.68798929,108260.0,108250.0,0.00062098]
[1760631795454,1.30856179,108260.0,108250.0,0.00062098]
[1760631796097,0.78798929,108260.0,108250.0,0.00062098]
[1760631796308,1.31688315,108260.0,108250.0,0.00062098]
[1760631796505,1.31588315,108260.0,108250.0,0.00062098]
[1760631796711,1.31588315,108260.0,108230.0,0.0004]
[1760631796712,0.22095685,108240.0,108230.0,0.0004]
[1760631797007,0.95146231,108240.0,108230.0,0.0004]
[1760631797974,1.29146231,108240.0,108230.0,0.0004]
[1760631798188,1.29246231,108240.0,108230.0,0.0004]
[1760631798400,1.29146231,108240.0,108230.0,0.0004]
[1760631798610,1.10668774,108240.0,108230.0,0.0004]
[1760631798819,1.29146231,108240.0,108230.0,0.0004]
[1760631799234,0.77088981,108240.0,108230.0,0.0004]
[1760631799451,1.29146231,108240.0,108230.0,0.0004]
[1760631799664,1.13399725,108240.0,108230.0,0.0004]
[1760631799871,1.09231517,108240.0,108230.0,0.0004]
[1760631800296,1.09431517,108240.0,108230.0,0.0004]
[1760631800511,0.052,108240.0,108230.0,0.0004]
[1760631800725,0.25987139,108240.0,108230.0,0.0004]
[1760631800936,0.05,108240.0,108230.0,0.00044]
[1760631801157,0.25787418,108240.0,108220.0,0.0004]
[1760631801369,0.051,108240.0,108220.0,0.0004]
[1760631801579,0.01,108230.0,108220.0,0.0004]
[1760631801808,0.15,108230.0,108220.0,1.13547134]
[1760631802047,0.15,108230.0,108220.0,6.13547134]
[1760631802048,0.01,108230.0,108220.0,6.13547134]
[1760631802315,0.01839673,108280.0,108260.0,0.18473654]
[1760631802519,0.01839673,108280.0,108270.0,0.70529587]
[1760631802520,0.14839673,108280.0,108270.0,0.70529587]
[1760631802782,0.14839673,108280.0,108270.0,0.78596643]
[1760631802783,0.13,108280.0,108270.0,0.78596643]
[1760631803039,0.13,108280.0,108270.0,6.12596643]
[1760631803316,0.03751228,108320.0,108290.0,0.18468152]
[1760631803317,0.01839673,108320.0,108290.0,0.18468152]
[1760631803584,0.13839673,108320.0,108290.0,0.8041786]
[1760631803832,0.32433435,108320.0,108290.0,0.79307692]
[1760631804082,0.18465852,108310.0,108290.0,0.08969012]
[1760631804410,0.20776615,108300.0,108270.0,0.5206125]
[1760631804608,0.31391574,108300.0,108270.0,0.05006422]
[1760631804906,0.31391574,108300.0,108290.0,0.18468926]
[1760631804907,0.12,108300.0,108290.0,0.18468926]
[1760631805190,0.12,108300.0,108290.0,0.27437938]
[1760631805420,0.12,108300.0,108280.0,0.5205725]
[1760631805678,0.12,108300.0,108280.0,0.79496807]
[1760631805959,0.0949879,108320.0,108290.0,0.18468926]
[1760631806200,0.11,108320.0,108290.0,0.80418634]
[1760631806399,0.11,108320.0,108300.0,0.70523101]
[1760631806603,0.11,108320.0,108300.0,0.79492113]
[1760631806817,0.11,108320.0,108300.0,0.08969012]
[1760631807254,0.32696039,108320.0,108290.0,5.0]
[1760631807464,0.29564137,108320.0,108290.0,0.28361318]
[1760631807669,0.82444577,108320.0,108290.0,0.27437821]
[1760631807871,0.3240015,108320.0,108300.0,4e-05]
[1760631808089,0.18465515,108310.0,108300.0,4e-05]
[1760631808274,0.5205725,108310.0,108270.0,1.08623901]
[1760631808536,0.11,108310.0,108290.0,0.18468779]
[1760631808740,0.11,108310.0,108290.0,0.61026262]
[1760631808950,0.14231464,108310.0,108270.0,0.21658107]
[1760631809157,0.84754497,108310.0,108280.0,0.08969012]
[1760631809367,0.19390588,108300.0,108270.0,0.30626906]
[1760631809583,0.30467312,108300.0,108270.0,0.31550522]
[1760631809801,0.12,108300.0,108270.0,0.84244786]
[1760631810014,0.30467366,108300.0,108270.0,0.10952174]
[1760631810239,0.18469747,108290.0,108270.0,0.10952174]
[1760631810444,0.5205725,108320.0,108290.0,0.19392168]
[1760631810650,0.02023273,108310.0,108280.0,5.18469966]
[1760631810858,0.18468926,108290.0,108270.0,0.10952174]
[1760631811068,0.01,108290.0,108270.0,0.00019072]
[1760631811297,0.73834851,108290.0,108270.0,0.00019072]
[1760631811504,0.71526236,108290.0,108270.0,0.00019072]
[1760631811717,0.20300694,108290.0,108270.0,0.00019072]
[1760631812125,0.72357944,108290.0,108270.0,0.00019072]
[1760631812332,0.70527881,108280.0,108270.0,0.00019072]
[1760631812541,0.73358719,108280.0,108270.0,0.00019072]
[1760631812753,0.76146109,108280.0,108230.0,0.02763631]
[1760631812961,0.70531639,108260.0,108230.0,0.29302916]
[1760631813170,0.75363423,108260.0,108230.0,0.20333904]
[1760631813588,0.75363423,108260.0,108230.0,0.23542909]
[1760631813793,0.75363423,108260.0,108230.0,0.00015084]
[1760631813999,0.75455341,108260.0,108230.0,0.18494229]
[1760631814201,0.23398091,108260.0,108230.0,0.21626247]
[1760631815059,0.24230392,108260.0,108230.0,0.21626247]
[1760631815479,0.04832301,108260.0,108240.0,0.27446163]
[1760631815690,0.04,108260.0,108240.0,0.27446255]
[1760631816328,0.04030248,108260.0,108240.0,0.27446255]
[1760631816543,0.22504328,108260.0,108230.0,0.21626198]
[1760631816741,0.22504328,108260.0,108230.0,0.3059532]
[1760631816986,0.23336879,108260.0,108240.0,4e-05]
[1760631817190,0.04862799,108260.0,108240.0,0.18480781]
[1760631817389,0.23336919,108260.0,108240.0,4e-05]
[1760631818141,0.04862799,108260.0,108240.0,0.18481332]
[1760631818349,0.04862799,108260.0,108250.0,0.00064011]
[1760631818565,0.04862799,108260.0,108240.0,0.18481332]
[1760631818773,0.04862799,108260.0,108240.0,8e-05]
[1760631818981,0.04862799,108260.0,108240.0,0.18485444]
[1760631819192,0.23336874,108260.0,108240.0,0.18485444]
[1760631819401,0.23336941,108260.0,108240.0,8e-05]
[1760631819613,0.04862799,108260.0,108240.0,8e-05]
[1760631819826,0.23336957,108260.0,108240.0,8e-05]
[1760631820030,0.11,108260.0,108240.0,0.18485402]
[1760631820245,0.11,108260.0,108240.0,0.27454414]
[1760631820657,0.11,108260.0,108250.0,0.1847575]
[1760631820862,0.11,108260.0,108240.0,0.27454414]
[1760631821287,0.29474116,108260.0,108240.0,0.08977012]
[1760631821510,0.11,108260.0,108240.0,0.27454363]
[1760631822139,0.11,108260.0,108250.0,1.02426724]
[1760631822357,0.55233153,108310.0,108270.0,5.18471494]
[1760631822358,0.21233153,108310.0,108270.0,5.18471494]
[1760631822565,0.15505247,108310.0,108280.0,0.19427164]
[1760631822797,0.15505247,108310.0,108290.0,0.18468923]
[1760631822798,0.13665574,108310.0,108290.0,0.18468923]
[1760631823019,0.12,108310.0,108300.0,0.1846722]
[1760631823254,0.12,108310.0,108290.0,0.26536067]
[1760631823468,0.12115089,108310.0,108290.0,0.26536067]
[1760631823885,0.12015089,108310.0,108290.0,0.26536067]
[1760631824741,0.12015089,108310.0,108290.0,0.26540067]
[1760631824961,0.12015089,108310.0,108300.0,0.27436232]
[1760631825168,0.12015089,108310.0,108300.0,0.61436232]
[1760631825370,0.12015089,108310.0,108300.0,6.36418194]
[1760631825574,0.00015089,108310.0,108300.0,6.46014194]
[1760631825776,0.00015089,108310.0,108300.0,5.61436232]
[1760631825974,0.00015089,108310.0,108300.0,0.61436232]
[1760631826173,0.00015089,108310.0,108290.0,0.34004]
[1760631826400,0.00015089,108310.0,108290.0,0.42973012]
[1760631826555,0.18481655,108310.0,108290.0,4e-05]
[1760631826753,0.20775622,108300.0,108290.0,4e-05]
[1760631826958,0.18469796,108290.0,108270.0,0.01839673]
[1760631827156,0.18470631,108280.0,108270.0,0.01839673]
[1760631827361,0.23394162,108280.0,108250.0,0.01839673]
[1760631827560,0.26663206,108280.0,108260.0,0.08969012]
[1760631827930,0.18475564,108260.0,108240.0,0.00012]
[1760631828135,0.20475564,108260.0,108240.0,0.00012]
[1760631829093,0.1847575,108250.0,108240.0,0.00027084]
[1760631829273,0.1947575,108250.0,108240.0,0.00027084]
[1760631829521,1.0342592,108250.0,108240.0,0.00027084]
[1760631829721,0.22726919,108250.0,108240.0,0.00027084]
[1760631830708,0.97708881,108250.0,108240.0,0.00027084]
[1760631831138,0.97708881,108250.0,108240.0,0.00031084]
[1760631831550,1.01327109,108250.0,108240.0,0.00031084]
[1760631831754,1.35327109,108250.0,108240.0,0.00031084]
[1760631831958,1.45959964,108250.0,108240.0,0.00031084]
[1760631832166,1.45127694,108250.0,108240.0,0.00031084]
[1760631833025,1.45127694,108250.0,108220.0,0.0004]
[1760631833026,1.27461126,108230.0,108220.0,0.0004]
[1760631833238,1.40308575,108230.0,108220.0,0.0004]
[1760631833429,1.49276783,108230.0,108220.0,0.0004]
[1760631833659,0.9346625,108200.0,108190.0,0.01879673]
[1760631833863,1.06298627,108200.0,108190.0,0.01879673]
[1760631834284,0.12832377,108200.0,108190.0,0.0004]
[1760631834491,0.32991204,108200.0,108190.0,0.0004]
[1760631834702,0.40284873,108200.0,108190.0,0.0004]
[1760631834918,0.31316665,108200.0,108190.0,0.0004]
[1760631835330,1.06298627,108200.0,108190.0,0.0004]
[1760631835745,0.31316665,108200.0,108190.0,0.0004]
[1760631836189,0.12832377,108200.0,108190.0,0.0004]
[1760631836393,0.12832377,108200.0,108190.0,0.18525996]
[1760631837023,0.12832377,108200.0,108190.0,0.09009012]
[1760631837248,0.12832377,108200.0,108190.0,0.0004]
[1760631837460,0.32599903,108200.0,108190.0,0.0004]
[1760631837665,0.14115615,108200.0,108190.0,0.0004]
[1760631837885,0.15142913,108200.0,108190.0,0.09009012]
[1760631838098,0.15142913,108200.0,108190.0,1.3647697]
[1760631838099,0.00832377,108200.0,108190.0,1.3647697]
[1760631838332,0.00832377,108200.0,108190.0,1.4607297]
[1760631838534,0.00832377,108200.0,108190.0,1.3647697]
[1760631838735,0.00832377,108200.0,108190.0,1.4607297]
[1760631838945,0.00832377,108200.0,108190.0,0.27495008]
[1760631839155,0.00832377,108200.0,108190.0,1.1207297]
[1760631839361,0.00832377,108200.0,108190.0,0.37091008]
[1760631839572,0.00832377,108200.0,108190.0,0.27495008]
[1760631839806,0.00832377,108200.0,108190.0,5.71091008]
[1760631840013,0.00832377,108200.0,108190.0,6.4607297]
[1760631840632,0.00832377,108200.0,108190.0,5.71091008]
[1760631840852,0.00832377,108200.0,108190.0,6.4607697]
[1760631841064,1e-08,108200.0,108190.0,6.3648097]
[1760631841279,0.00015072,108230.0,108220.0,5.52480872]
[1760631841516,0.00015072,108230.0,108220.0,6.46027846]
[1760631841733,0.00015072,108230.0,108220.0,6.36431846]
[1760631841958,0.00015072,108230.0,108220.0,6.46027846]
[1760631842400,0.00015072,108230.0,108220.0,6.36431846]
[1760631842604,0.00015072,108230.0,108220.0,6.46027846]
[1760631842812,0.00015072,108230.0,108220.0,6.36431846]
[1760631843041,0.00015072,108230.0,108220.0,6.46027846]
[1760631843276,0.00015072,108230.0,108220.0,6.36431846]
[1760631843528,0.00015072,108230.0,108220.0,6.46027846]
[1760631843754,0.00015072,108230.0,108220.0,5.71049884]
[1760631843972,0.00015072,108230.0,108220.0,0.08973012]
[1760631844177,0.00015072,108230.0,108220.0,4e-05]
[1760631844381,0.00015072,108230.0,108220.0,0.18484872]
[1760631844592,0.00015072,108230.0,108220.0,0.00104]
[1760631844824,0.19494236,108230.0,108220.0,0.00104]
[1760631845042,1.03444406,108230.0,108220.0,0.00104]
[1760631845261,1.07062634,108230.0,108220.0,4e-05]
[1760631845683,1.03444406,108230.0,108220.0,0.00104]
[1760631845889,1.03444406,108230.0,108220.0,4e-05]
[1760631846332,1.41062634,108230.0,108220.0,4e-05]
[1760631847164,0.66080672,108230.0,108220.0,4e-05]
[1760631847378,1.41062634,108230.0,108220.0,4e-05]
[1760631847621,1.41062634,108230.0,108180.0,0.31302482]
[1760631847622,0.18485996,108190.0,108180.0,0.31302482]
[1760631847856,0.19413513,108180.0,108160.0,0.01789673]
[1760631848067,0.19413513,108180.0,108150.0,0.03669602]
[1760631848068,0.14,108180.0,108150.0,0.03669602]
[1760631848285,0.14,108180.0,108160.0,0.20646551]
[1760631848488,0.33852178,108180.0,108150.0,0.21234603]
[1760631848730,0.80911366,108170.0,108150.0,0.02744961]
[1760631848943,0.12,108170.0,108150.0,0.02744961]
[1760631849164,0.12,108170.0,108160.0,0.18495124]
[1760631849586,0.12,108170.0,108160.0,4e-05]
[1760631849801,0.12,108170.0,108160.0,0.18495124]
[1760631850214,0.12,108170.0,108160.0,0.27464136]
[1760631850427,0.12,108170.0,108160.0,0.27414136]
[1760631850848,0.00015061,108180.0,108170.0,0.18489414]
[1760631851054,0.03115061,108180.0,108170.0,0.18489414]
[1760631851465,0.03015061,108180.0,108170.0,0.18489414]
[1760631851894,0.00015061,108180.0,108170.0,1.35940388]
[1760631852101,0.00015061,108180.0,108170.0,6.44908596]
[1760631852306,0.00015061,108180.0,108170.0,6.45008596]
[1760631852737,0.00015061,108180.0,108170.0,6.54620596]
[1760631852940,0.00015061,108180.0,108170.0,6.45008596]
[1760631853160,0.00844762,108180.0,108170.0,6.54624596]
[1760631853576,0.00844762,108180.0,108170.0,6.45012596]
[1760631853790,0.00844762,108180.0,108170.0,1.36044388]
[1760631853791,0.00845217,108180.0,108170.0,1.36044388]
[1760631854001,0.00845217,108180.0,108170.0,0.09073012]
[1760631854203,0.00845217,108180.0,108170.0,0.18493414]
[1760631854412,0.00845217,108180.0,108170.0,0.00104]
[1760631854626,0.00845217,108180.0,108170.0,0.18593414]
[1760631854841,0.00845217,108180.0,108170.0,1.13977765]
[1760631855054,0.00845217,108180.0,108170.0,1.14077765]
[1760631855463,0.00845217,108180.0,108170.0,1.48077765]
[1760631855870,0.00845217,108180.0,108170.0,1.36544388]
[1760631856072,0.00845217,108180.0,108170.0,1.46156388]
[1760631856280,0.00845217,108180.0,108170.0,6.46156388]
[1760631856916,0.00845217,108180.0,108170.0,6.36544388]
[1760631857334,0.00845217,108180.0,108170.0,6.46152388]
[1760631857487,0.00845217,108180.0,108170.0,6.55120596]
[1760631858450,0.00845217,108180.0,108170.0,6.45512596]
[1760631858625,0.00845217,108180.0,108170.0,6.55120596]
[1760631858794,0.00846994,108180.0,108170.0,6.55120596]
[1760631859370,0.00846994,108180.0,108170.0,6.45512596]
[1760631859584,0.00846994,108180.0,108170.0,6.45462596]
[1760631859975,0.00846994,108180.0,108170.0,1.55062596]
[1760631860219,0.00846994,108180.0,108170.0,0.001]
[1760631860424,0.00846994,108180.0,108170.0,0.18189414]
[1760631861187,0.00846994,108180.0,108170.0,0.18489414]
[1760631861785,0.00846994,108180.0,108170.0,0.93471376]
[1760631862242,0.00846994,108180.0,108170.0,1.36440388]
[1760631862446,0.00846994,108180.0,108170.0,6.36440388]
[1760631862657,0.00846994,108180.0,108170.0,1.36440388]
[1760631863309,0.00846994,108180.0,108170.0,0.61458426]
[1760631863509,0.00846994,108180.0,108170.0,0.28089414]
[1760631863920,0.00846994,108180.0,108170.0,0.18489414]
[1760631864530,0.00846994,108180.0,108160.0,0.52449124]
[1760631864755,0.03157957,108180.0,108160.0,0.71018136]
[1760631864959,0.00846994,108180.0,108170.0,0.18489414]
[1760631865171,0.00846994,108180.0,108170.0,1.36440388]
[1760631865377,0.00846994,108180.0,108170.0,6.36440388]
[1760631865571,0.00846994,108180.0,108170.0,5.61458426]
[1760631865776,0.00846994,108180.0,108170.0,6.36440388]
[1760631865942,0.00846994,108180.0,108170.0,6.45408596]
[1760631866848,0.00846994,108180.0,108170.0,1.46040388]
[1760631867085,0.00846994,108180.0,108160.0,0.28049124]
[1760631867317,0.00846994,108180.0,108170.0,0.18489414]
[1760631867807,0.00846994,108180.0,108160.0,0.71018136]
[1760631868031,0.01846994,108180.0,108170.0,0.18489414]
[1760631868258,0.24679053,108180.0,108160.0,0.18573012]
[1760631868484,0.038803,108180.0,108160.0,0.27464046]
[1760631868703,0.06191263,108180.0,108160.0,0.37064046]
[1760631868952,0.01846994,108180.0,108170.0,0.18489414]
[1760631869454,0.01846994,108180.0,108170.0,1.02440388]
[1760631869653,0.00846994,108180.0,108170.0,1.02440388]
[1760631869886,0.00846994,108180.0,108170.0,0.27458426]
[1760631870145,0.00846994,108180.0,108170.0,1.02440388]
[1760631870334,0.00846994,108180.0,108170.0,0.27458426]
[1760631870484,0.00846994,108180.0,108170.0,0.37158426]
[1760631871115,0.0084702,108180.0,108170.0,0.18589414]
[1760631871328,0.0084702,108180.0,108170.0,0.001]
[1760631871698,0.0284702,108180.0,108170.0,0.001]